Cogmind - Beta 13 @@@ ROGUE MODE // 2024.04.25 @ 22:06:10 Player: H3-RMN Result: Destroyed by RM-VJ7(R) with Subdweller Laser Performance ------------- Evolutions (0) 0 Regions Visited (3) 600 Robots Destroyed (40) 200 Value Destroyed (802) 802 Prototype IDs (2) 40 Alien Tech Used (0) 0 Bonus (8) 8 TOTAL SCORE: 1650 Bonus ------- High Alert Combat Kills 8 Cogmind --------- Core Integrity 0/250 Matter 234/300 Energy 250/250 System Corruption 4% Temperature Cool (6) Movement Treading (560) Ox4 Location -10/Subcaves Parts ------- > --- POWER (1) -------- Ion Engine > --- PROPULSION (2) --- Spiked Treads Subdweller Monowheel > --- UTILITY (2) ------ Huge Storage Unit Structural Scanner > --- WEAPON (2) ------- Assault Rifle Grenade Launcher > --- INVENTORY (25) --- Ion Engine Light Treads Light Treads Light Treads Wheel Compact Wheel Medium Matter Pod (30) Hacking Suite Small Laser Light Assault Rifle Light Assault Rifle Light Assault Rifle Light Assault Rifle Light Assault Rifle Light Assault Rifle Grenade Launcher Datajack Makeshift Hammer Peak State ------------ > --- POWER ------------ Ion Engine > --- PROPULSION ------- Spiked Treads Subdweller Monowheel > --- UTILITY ---------- Huge Storage Unit Structural Scanner > --- WEAPON ----------- Light Assault Rifle Light Assault Rifle > --- INVENTORY -------- Ion Engine Light Treads Light Treads Light Treads Wheel Compact Wheel Medium Matter Pod Hacking Suite Small Laser Assault Rifle Light Assault Rifle Light Assault Rifle Light Assault Rifle Light Assault Rifle Grenade Launcher Grenade Launcher Datajack Makeshift Hammer [Rating: 11] Favorites ----------- Power Ion Engine Engine Ion Engine Propulsion Light Treads Treads Light Treads Wheel Compact Wheel Utility Huge Storage Unit Device Structural Scanner Storage Huge Storage Unit Weapon Light Assault Rifle Ballistic Gun Light Assault Rifle Launcher Grenade Launcher Build | -11 -10 -10 -10 ------- Run | Yrd Mat Min Sub Slots Evolved . | . . . . Power . | . . . . Propulsion . | . . . . Utility . | . . . . Weapon . | . . . . Parts Attached 32 | 9 11 8 4 Power 2 | 1 1 . . Engine 2 | 1 1 . . Core . | . . . . Reactor . | . . . . Propulsion 9 | 4 3 . 2 Treads 4 | 1 2 . 1 Leg . | . . . . Wheel 5 | 3 1 . 1 Hover . | . . . . Flight . | . . . . Utility 4 | 2 2 . . Device 2 | 1 1 . . Storage 2 | 1 1 . . Processor . | . . . . Hackware . | . . . . Protection . | . . . . Artifact . | . . . . Weapon 17 | 2 5 8 2 Energy Gun . | . . . . Energy Cannon . | . . . . Ballistic Gun 12 | 2 3 6 1 Ballistic Cannon . | . . . . Launcher 5 | . 2 2 1 Special Weapon . | . . . . Impact Weapon . | . . . . Slashing Weapon . | . . . . Piercing Weapon . | . . . . Special Melee Weapon . | . . . . Unidentified Prototypes . | . . . . Parts Lost 6 | . 4 2 . Power 1 | . 1 . . Propulsion 2 | . 2 . . Utility 1 | . 1 . . Weapon 2 | . . 2 . Highest Loss Streak 3 | . 3 2 . To Critical Strikes . | . . . . Average Slot Usage (%) 99 | . 99 100 100 Engine 14 | . 14 14 14 Treads 14 | . 14 14 14 Wheel 13 | . 13 14 14 Device 13 | . 13 14 14 Storage 14 | . 14 14 14 Ballistic Gun 27 | . 27 27 27 Naked Turns . | . . . . Heaviest Build 91 | 15 90 90 91 Greatest Support 40 | 20 40 16 20 Greatest Overweight (x) 8 | 1 8 5 5 Average Overweight (x) 4 | . 4 5 4 Largest Inventory Capacity 25 | 8 25 25 25 Average Capacity 21 | 7 18 25 25 Most Carried 18 | 6 14 16 18 Average Carried 12 | 3 10 15 16 Final Capacity 25 | 8 25 25 25 Final Carried 18 | 6 14 15 18 Class Distribution -------------------- 63% | Scavenger-Mutant 36% | Mutant Dominant Class ---------------- Mutant | -10/Materials Scavenger-Mutant | -10/Mines Scavenger-Mutant | -10/Subcaves Resources | -11 -10 -10 -10 ----------- Run | Yrd Mat Min Sub Matter Collected 1086 | 286 499 231 70 Remotely . | . . . . Salvage Created 918 | 31 691 166 30 Parts 71 | 6 45 18 2 Haulers Intercepted 1 | . 1 . . Recyclers Shooed . | . . . . Parts Field Recycled . | . . . . Retrieved Matter . | . . . . Parts Self-Destructed 7 | . . . 7 Prevented . | . . . . Kills | -11 -10 -10 -10 ------- Run | Yrd Mat Min Sub Combat Hostiles Destroyed 31 | . 19 11 1 Guns 21 | . 16 5 . AOE 10 | . 3 6 1 Classes Destroyed 9 | 1 7 . 1 Worker 3 | . 3 . . Builder 1 | . 1 . . Tunneler 2 | 2 . . . Hauler 1 | . 1 . . Operator 1 | . 1 . . Watcher 1 | . 1 . . Swarmer 15 | . 6 9 . Grunt 15 | . 13 2 . Subdweller 1 | . . . 1 Best Kill Streak 5 | 2 5 3 1 Combat Bots Only 3 | . 3 3 1 Max Kills in Single Turn 2 | 1 2 2 1 Gunslinging 1 | . . 1 . Exploded 2 | . 2 2 1 Melee . | . . . . Uniques/NPCs Destroyed . | . . . . Combat | -11 -10 -10 -10 -------- Run | Yrd Mat Min Sub Hostile Shots Fired 112 | . 68 43 1 Missed 25 | . 12 13 . Damage Taken 1042 | . 642 382 18 Core 252 | . 151 83 18 Absorbed by Shields . | . . . . Core Remaining (%) 100 | 100 . . . Volleys Fired 87 | 2 57 25 3 Largest 2 | 2 2 2 2 Hottest 50 | 40 40 40 50 Shots Fired 165 | 4 108 46 7 Gun 149 | 4 101 40 4 Cannon . | . . . . Launcher 16 | . 7 6 3 Special . | . . . . Kinetic 149 | 4 101 40 4 Thermal . | . . . . Explosive 16 | . 7 6 3 Electromagnetic . | . . . . Robot Hit Streak 10 | 2 10 3 5 Robot Miss Streak 6 | . 3 6 . Penetration Max . | . . . . Secondary Targets 2 | . . 2 . Max Gunslinging Chain 1 | . . 1 . Shots Hit Robots 88 | 2 68 16 2 Core Hits 60 | 2 39 18 1 Critical Kills 1 | . 1 . . Critical Parts Destroyed . | . . . . Critical Strikes 1 | . 1 . . Destroy 1 | . 1 . . Melee Attacks . | . . . . Impact . | . . . . Slashing . | . . . . Piercing . | . . . . Sneak Attacks . | . . . . Combat Hostiles . | . . . . Follow-up Attacks . | . . . . Damage Inflicted 1978 | 25 1225 521 207 Guns 1060 | 25 836 184 15 Cannons . | . . . . Explosions 918 | . 389 337 192 Melee . | . . . . Ramming . | . . . . Kinetic 1060 | 25 836 184 15 Thermal . | . . . . Explosive 918 | . 389 337 192 Electromagnetic . | . . . . Impact . | . . . . Slashing . | . . . . Piercing . | . . . . Highest Corruption 4 | . 4 4 4 Average Corruption 3 | . 3 4 4 Corruption Purged . | . . . . Corruption Blocked . | . . . . Effects 36 | . 14 15 7 Message Errors 2 | . 1 . 1 Matter Fused 17 | . 8 7 2 Heat Flow Errors 3 | . 2 1 . Energy Discharges 2 | . . 2 . Data Loss (minor) 3 | . 1 1 1 Data Loss (major) 2 | . . 2 . Misfires 5 | . 1 2 2 Alerts 2 | . 1 . 1 Overload Shots . | . . . . Overflow Damage 16 | . . 16 . Projectiles . | . . . . Explosions 16 | . . 16 . Melee . | . . . . Knockbacks . | . . . . Impact . | . . . . Kinetic . | . . . . Secondary . | . . . . Self-Inflicted Damage 88 | . 35 53 . Shots 3 | . 1 2 . Rammed . | . . . . Targets Rammed . | . . . . Kicked . | . . . . Crushed . | . . . . Highest Temperature 236 | . 236 204 . Average Temperature 60 | . 65 53 . Received Heat Transfer 444 | . 291 147 6 Siege Activations . | . . . . Robots Corrupted . | . . . . Combat Hostiles . | . . . . Parts Fried . | . . . . Impact Corruptions . | . . . . Robots Melted . | . . . . Combat Hostiles . | . . . . Parts Melted . | . . . . Heat Transferred . | . . . . Parts Sabotaged . | . . . . Parts Stolen . | . . . . Parts Stripped . | . . . . Power Chain Reactions . | . . . . Alert | -11 -10 -10 -10 ------- Run | Yrd Mat Min Sub Peak Influence 415 | 10 415 386 . Initial 103 | . 6 103 . Average 233 | 1 235 265 . Maximum Alert Level 2 | . 2 1 . Low Security (%) 45 | 100 37 48 . Level 1 51 | . 57 51 . Level 2 2 | . 5 . . Level 3 . | . . . . Level 4 . | . . . . Level 5 . | . . . . High Security . | . . . . Max Security . | . . . . Squads Dispatched 4 | . 4 . . Investigation 2 | . 2 . . Extermination . | . . . . Reinforcement 2 | . 2 . . Assault . | . . . . Garrison . | . . . . Intercept . | . . . . Searches Triggered . | . . . . Construction Impeded . | . . . . Haulers Reinforced . | . . . . Active Scanning Responses . | . . . . Cargo Convoy Interrupts . | . . . . Stealth | -11 -10 -10 -10 --------- Run | Yrd Mat Min Sub Distress Signals 2 | . 2 . . Communications Jammed . | . . . . Distress Signals . | . . . . Times Spotted 36 | . 23 11 2 Peak Tracking Total 5 | . 5 3 2 Tactical Retreats 2 | . 2 . . Traps | -11 -10 -10 -10 ------- Run | Yrd Mat Min Sub Traps Triggered 2 | . 2 . . Indirectly . | . . . . Trap Hack Attempts . | . . . . Triggered . | . . . . Disarmed . | . . . . Reprogrammed . | . . . . Reused . | . . . . Traps Extracted . | . . . . Installed . | . . . . Triggered . | . . . . Machines | -11 -10 -10 -10 ---------- Run | Yrd Mat Min Sub Machines Disabled 2 | . 1 1 . Max in Single Turn 1 | . 1 1 . Machines Repaired . | . . . . Machines Dismantled . | . . . . Machines Sabotaged . | . . . . Overloaded Fab Kills . | . . . . Hacking | -11 -10 -10 -10 --------- Run | Yrd Mat Min Sub Machines Accessed 4 | . 3 . 1 Terminals 2 | . 2 . . Fabricators . | . . . . Repair Stations . | . . . . Recycling Units 1 | . 1 . . Scanalyzers . | . . . . Garrison Access . | . . . . Total Hacks 12 | . 11 . 1 Successful 6 | . 5 . 1 Failed 6 | . 6 . . Catastrophic . | . . . . Database Lockouts . | . . . . Manual 5 | . 5 . . Terminals 9 | . 9 . . Fabricators . | . . . . Repair Stations . | . . . . Recycling Units 2 | . 2 . . Scanalyzers . | . . . . Garrison Access . | . . . . Terminal Hacks 4 | . 3 . 1 Record 1 | . . . 1 Part Schematic 1 | . 1 . . Robot Analysis 1 | . 1 . . Prototype ID Bank 1 | . 1 . . Fabricator Hacks . | . . . . Repair Station Hacks . | . . . . Recycling Unit Hacks 1 | . 1 . . Report Inventory 1 | . 1 . . Scanalyzer . | . . . . Garrison Access Hacks . | . . . . Unauthorized Hacks 1 | . 1 . . Terminals . | . . . . Fabricators . | . . . . Repair Stations . | . . . . Recycling Units 1 | . 1 . . Tunnel 1 | . 1 . . Scanalyzers . | . . . . Garrison Access . | . . . . Data Cores Recovered . | . . . . Used . | . . . . Hacking Detections 2 | . 2 . . Full Trace Events 1 | . 1 . . Feedback Events . | . . . . Feedback Blocked . | . . . . Robot Schematics Acquired . | . . . . Robots Built . | . . . . Authchips . | . . . . Time . | . . . . Total Robot Build Rating . | . . . . Part Schematics Acquired 1 | . 1 . . Parts Built . | . . . . Authchips . | . . . . Time . | . . . . Total Part Build Rating . | . . . . Parts Repaired . | . . . . Time . | . . . . Parts Recycled . | . . . . Recycled Matter . | . . . . Retrieved Matter . | . . . . Retrieved Components . | . . . . Parts Scanalyzed . | . . . . Part Schematics Acquired . | . . . . Parts Damaged . | . . . . Bothacking | -11 -10 -10 -10 ------------ Run | Yrd Mat Min Sub Used RIF Installer . | . . . . Robots Hacked . | . . . . Non-combat . | . . . . Combat . | . . . . Robot Hacks Applied . | . . . . Relay Couplers Released . | . . . . Fabnet Peak Effective % . | . . . . Robots Rewired . | . . . . Allies Hacked . | . . . . Hacks Repelled . | . . . . Allies | -11 -10 -10 -10 -------- Run | Yrd Mat Min Sub Total Allies . | . . . . Largest Group . | . . . . Highest-Rated Group . | . . . . Highest-Rated Ally . | . . . . Total Orders . | . . . . Ally Attacks . | . . . . Total Damage . | . . . . Kills . | . . . . Allies Corrupted . | . . . . Allies Melted . | . . . . Intel | -11 -10 -10 -10 ------- Run | Yrd Mat Min Sub Robot Analysis Total 1 | . 1 . . Derelict Logs Recovered 2 | . . 1 1 Drone Launches . | . . . . Drone Recoveries . | . . . . Exploration | -11 -10 -10 -10 ------------- Run | Yrd Mat Min Sub Turns Passed 2069 | 94 902 624 449 Spaces Moved 984 | 71 373 255 285 Core 4 | 4 . . . Treads 9 | 5 4 . . Legs . | . . . . Wheels 971 | 62 369 255 285 Hover . | . . . . Flight . | . . . . Fastest Speed 50 | 50 95 175 150 Average Speed 154 | 100 153 175 152 Slowest Speed 320 | 160 320 175 175 Overloaded Moves . | . . . . Propulsion Burnouts . | . . . . Robots Hopped . | . . . . Cave-ins Triggered . | . . . . Exploration Rate (%) 39 | 5 66 53 35 Regions Visited 3 Branch Regions 2 Pre-discovered Areas 2 | . 1 1 . Known Exits Taken . | . . . . Unknown Exits Taken 3 | 1 1 1 . Scrap Searched 2 | . . . 2 Spaces Dug 29 | . 11 10 8 Terrain Destroyed 106 | . 53 37 16 Melee . | . . . . Projectile . | . . . . AOE 106 | . 53 37 16 Terrain Rammed . | . . . . Walls Destroyed . | . . . . Machines Disabled . | . . . . Actions | -11 -10 -10 -10 --------- Run | Yrd Mat Min Sub Total 1368 | 85 598 392 293 Wait 247 | . 143 104 . Move 981 | 70 372 254 285 Hop . | . . . . Pick Up 18 | 4 12 1 1 Fast Attach 8 | 7 1 . . Attach 5 | . 3 2 . Detach . | . . . . Swap 19 | 2 7 6 4 Drop 3 | . 3 . . Fire 87 | 2 57 25 3 Melee . | . . . . Ram . | . . . . Kick . | . . . . Crush . | . . . . Escape Stasis . | . . . . Rewire . | . . . . Trap . | . . . . Miscellaneous . | . . . . Route ------- -11/Scrapyard -10/Materials (discovered 3 exits: [*Mat] / [*Min x2]) -10/Mines -10/Subcaves (discovered 1 exit: [*Mat]) History --------- Turn | Location | Event 30 | -11/Scrapyard | Discovered new exit (range 15) 95 | -11/Scrapyard | Entered Materials 291 | -10/Materials | Discovered new exit (range 6) 301 | -10/Materials | Build established: Mutant 551 | -10/Materials | Discovered new exit (range 14) 690 | -10/Materials | Discovered new exit (range 13) 707 | -10/Materials | Core integrity fell below 50% 753 | -10/Materials | Lost 3 parts (1p2n) 997 | -10/Materials | Entered Mines 1031 | -10/Mines | Build established: Scavenger-Mutant 1103 | -10/Mines | Met a Derelict bent on vengeance 1163 | -10/Mines | Core integrity fell below 20% 1273 | -10/Mines | Assembled infested the area 1278 | -10/Mines | Assisted by a Guerilla fighting off Assembled 1404 | -10/Mines | Learned location of Mines (-9) 1540 | -10/Mines | Discovered new exit (range 5) 1621 | -10/Mines | Entered Subcaves 1697 | -10/Subcaves | Discovered new exit (range 16) 1770 | -10/Subcaves | Visited Clippyterm 1992 | -10/Subcaves | Learned Materials trap positions 2065 | -10/Subcaves | A Subdweller sparked back to life 2065 | -10/Subcaves | A Subdweller sparked back to life 2070 | -10/Subcaves | Destroyed by RM-VJ7(R) with Subdweller Laser Last Messages --------------- 01930_ GJOTAYSIUJSGMJ/PXB# SR:1R9NUPKEODT 01991_ System corrupted: FCS attempts to trigger Lgt. Assault Rifle. 01991_ System corrupted: Lgt. Assault Rifle misfires. 01992_ Acquired derelict log, extracted data. Data stored: Materials trap records. 02031_ Searching scrap... 02031_ Found Spk. Treads. 02031_ Found 28 Matter. 02032_ Acquired 28 matter. 02063_ The unstable cave ceiling collapses. 02065_ 40-AGM(R) creaks and sparks as it begins to move. 02065_ RM-VJ7(R) creaks and sparks as it begins to move. 02065_ 40-AGM(R) destroyed. 02067_ Subatomizers dissect the Sub. Monowheel. 02069_ RM-VJ7(R) affixes Scrap Shield Fragment to Scrap Shield. Map ----- +----------------------------------------------------+ | ### """ ### " ##?????????????????????## ### | | ##### ### "###?????????????????########### | | ??#### ### "###??????????????############## | | ????###### ""##???????????????##### #?##### | | ?????####### " ##?????????????#### ?### | | ??????????#####???????????????#### ### # | | ??????????#####???????????????## ### ## | | ??????????????????????????????### ## ### | | ???????????????????????????????#### ## ### | | ???????????????????????????????##### ## | | ??????????????????????????????########## | | ??????????????????????????????### ####### | | ?????????????????????????????### ###?#### | | ?????????????????????????????### ??### | | ?????????????????????????????## ???## ## | | ?????????????????????????????## ??## ### | | ?????????????????????????????### ## ## ### | | ??????????????????????????????### ### ### ### | | ??????????????????????????????### ###### | | ??????????????????????????????## ####### | | ??????????????????????????????## ###### | | ??????????????????????????????### ##### | | ????????????????????############# ## | | ??????????????????############## | | ??????????????????## # #### | | ?????????????????### @ ##### | | ?????????????????## ## ###### | | ?????????????????### # #### ###### | | ????????????????? # ###### ###### | | ????????????????? ###### ###### | | ??????????????? #???### ##?## | | ????????????? &! ####???#### ##?## | | ???????????? %R<#####????### ##? # | | ????????????### R###????????## ####?? #### | | ????????????###& ##????????? #####? #### | | ?????????????## ??????????? #######??? ##??? | | ?????????????## ?????????? #######???? ##??? | | ?????????????##